bitfinex/quotes_BTCUSD_20250714
["timestamp","ask_amount","ask_price","bid_price","bid_amount"]
[1752469526111,0.60870278,121230.0,121220.0,0.1026366]
[1752469526738,0.60870278,121230.0,121220.0,0.2361166]
[1752469526926,0.60870278,121230.0,121220.0,0.2325866]
[1752469527469,0.60870278,121230.0,121220.0,0.2325466]
[1752469527851,0.61168278,121230.0,121220.0,0.2001466]
[1752469528079,0.61168278,121230.0,121220.0,0.1625987]
[1752469528427,0.61374278,121230.0,121220.0,0.13344]
[1752469529398,0.10501078,121230.0,121220.0,0.13344]
[1752469530104,0.12974478,121230.0,121220.0,0.13344]
[1752469530482,0.12974478,121230.0,121220.0,0.152944]
[1752469532873,0.19394478,121230.0,121220.0,0.13344]
[1752469533280,0.50154478,121230.0,121220.0,0.13344]
[1752469535339,0.50154478,121230.0,121210.0,0.03]
[1752469535557,0.41313485,121230.0,121220.0,0.13344]
[1752469535682,0.47383078,121230.0,121220.0,0.13344]
[1752469535899,0.52856478,121230.0,121210.0,0.00014874]
[1752469536109,0.44313485,121230.0,121220.0,0.1334]
[1752469536311,0.51575849,121230.0,121220.0,0.1334]
[1752469536647,0.54049249,121230.0,121220.0,0.1334]
[1752469536950,0.54366249,121230.0,121220.0,0.1334]
[1752469537132,0.87002803,121230.0,121220.0,0.1334]
[1752469538874,0.87102803,121230.0,121220.0,0.1334]
[1752469539083,0.54466249,121230.0,121220.0,0.1334]
[1752469539282,0.87102803,121230.0,121220.0,0.1334]
[1752469539787,0.88752443,121230.0,121220.0,0.1334]
[1752469540002,0.8792762,121230.0,121220.0,0.1334]
[1752469540341,0.87202803,121230.0,121220.0,0.1334]
[1752469540884,0.87202803,121230.0,121210.0,0.00014874]
[1752469541084,0.46531073,121230.0,121220.0,0.1334]
[1752469541280,0.01454085,121220.0,121210.0,0.00014874]
[1752469541488,0.17744969,121220.0,121210.0,0.00014874]
[1752469541693,0.21043674,121220.0,121210.0,0.13354874]
[1752469542004,0.20218769,121220.0,121210.0,0.13354874]
[1752469542207,0.52855323,121220.0,121210.0,0.13354874]
[1752469542412,0.52030432,121220.0,121210.0,0.13354874]
[1752469543019,0.52030432,121220.0,121210.0,0.13454874]
[1752469544281,0.52855317,121220.0,121210.0,0.13454874]
[1752469544699,0.52030432,121220.0,121210.0,0.13454874]
[1752469544889,0.52855317,121220.0,121210.0,0.13454874]
[1752469545078,0.52030432,121220.0,121210.0,0.13454874]
[1752469545457,0.19393878,121220.0,121210.0,0.13454874]
[1752469545713,0.52030432,121220.0,121210.0,0.13454874]
[1752469547477,0.48800432,121220.0,121210.0,0.16777561]
[1752469547828,0.16163878,121220.0,121210.0,0.16777561]
[1752469548660,0.16163878,121220.0,121210.0,0.03437561]
[1752469548885,0.12983878,121220.0,121210.0,0.16773561]
[1752469551283,0.11016793,121220.0,121210.0,0.60771411]
[1752469551484,0.08542993,121220.0,121210.0,0.75863364]
[1752469552414,0.08542993,121220.0,121210.0,0.62531364]
[1752469552882,0.08542993,121220.0,121210.0,0.75863364]
[1752469553065,0.14,121220.0,121210.0,0.62531364]
[1752469553316,0.14,121220.0,121210.0,0.75863364]
[1752469553720,0.14,121220.0,121210.0,0.62531364]
[1752469553850,0.14,121220.0,121210.0,0.75863364]
[1752469554449,0.34337,121260.0,121240.0,0.0649]
[1752469554643,0.34337,121260.0,121240.0,0.0895365]
[1752469554644,0.08542993,121250.0,121240.0,0.0895365]
[1752469554840,0.08542993,121250.0,121240.0,0.2246265]
[1752469555501,0.08542993,121250.0,121240.0,0.0913065]
[1752469555731,0.08542993,121250.0,121240.0,0.2246265]
[1752469556145,0.08642993,121250.0,121240.0,0.2246265]
[1752469556459,0.08642993,121250.0,121240.0,0.27276454]
[1752469556659,0.08642993,121250.0,121240.0,0.2328346]
[1752469556922,0.08642993,121250.0,121240.0,0.24108263]
[1752469557118,0.08642993,121250.0,121240.0,0.40604468]
[1752469557318,0.08642993,121250.0,121240.0,0.28926053]
[1752469557524,0.08642993,121250.0,121240.0,0.42254053]
[1752469557723,0.08642993,121250.0,121240.0,0.2328346]
[1752469558758,0.08542993,121250.0,121240.0,0.2328346]
[1752469558931,0.08542993,121250.0,121240.0,0.24108263]
[1752469559829,0.08542993,121250.0,121240.0,0.24933059]
[1752469560054,0.08542993,121250.0,121240.0,0.41429264]
[1752469560238,0.08542993,121250.0,121240.0,0.2328346]
[1752469560628,0.08542993,121250.0,121240.0,0.24108263]
[1752469560834,0.08542993,121250.0,121240.0,0.2328346]
[1752469561035,0.08542993,121250.0,121240.0,0.2245865]
[1752469561248,0.08542993,121250.0,121240.0,0.0913065]
[1752469561476,0.08542993,121250.0,121240.0,0.2245465]
[1752469562930,0.08542993,121250.0,121240.0,0.0913065]
[1752469563168,0.08542993,121250.0,121240.0,0.2245465]
[1752469563334,0.08542993,121250.0,121240.0,0.0913065]
[1752469563538,0.08542993,121250.0,121240.0,0.2245465]
[1752469563742,0.08542993,121250.0,121240.0,0.2327946]
[1752469564146,0.08542993,121250.0,121240.0,0.2245465]
[1752469564345,0.08542993,121250.0,121240.0,0.0913065]
[1752469564754,0.09059993,121250.0,121240.0,0.0264065]
[1752469564959,0.09059993,121250.0,121240.0,0.13501]
[1752469566799,0.09059993,121250.0,121240.0,0.00177]
[1752469567006,0.08850993,121250.0,121240.0,0.16657]
[1752469567230,0.08850993,121250.0,121240.0,0.19907]
[1752469568151,0.08542993,121250.0,121240.0,0.2073181]
[1752469568355,0.09059993,121250.0,121240.0,0.03337]
[1752469568560,0.09059993,121250.0,121240.0,0.16657]
[1752469574083,0.09059993,121250.0,121240.0,0.03337]
[1752469574283,0.09059993,121250.0,121240.0,0.13316]
[1752469574695,0.09059993,121250.0,121230.0,0.25412071]
[1752469574885,0.09059993,121250.0,121240.0,0.13316]
[1752469577134,0.09059993,121250.0,121230.0,0.3313024]
[1752469577135,0.4,121240.0,121230.0,0.3230539]
[1752469577335,0.4,121240.0,121230.0,0.4579839]
[1752469577560,0.4,121240.0,121230.0,0.46623254]
[1752469577761,0.4,121240.0,121230.0,0.47448105]
[1752469578164,0.4,121240.0,121230.0,0.67220105]
[1752469578363,0.4,121240.0,121230.0,0.67220111]
[1752469578529,0.4,121240.0,121230.0,0.53904111]
[1752469578726,0.4,121240.0,121230.0,0.55553778]
[1752469578947,0.4,121240.0,121230.0,0.68044948]
[1752469579145,0.4,121240.0,121230.0,0.69169778]
[1752469579798,0.4,121240.0,121230.0,0.68344948]
[1752469580012,0.4,121240.0,121230.0,0.68344955]
[1752469580273,0.4,121240.0,121230.0,0.55028955]
[1752469580472,0.4,121240.0,121230.0,0.67516111]
[1752469580915,0.4,121240.0,121230.0,0.68340962]
[1752469581142,0.4,121240.0,121230.0,0.69165806]
[1752469581527,0.4,121240.0,121230.0,0.69165772]
[1752469582641,0.4,121240.0,121230.0,0.67516091]
[1752469582867,0.4,121240.0,121230.0,0.68340935]
[1752469583060,0.4,121240.0,121230.0,0.69165772]
[1752469583328,0.4,121240.0,121230.0,0.55853772]
[1752469583539,0.4,121240.0,121230.0,0.55028935]
[1752469583757,0.4,121240.0,121230.0,0.68340935]
[1752469584591,0.4,121240.0,121230.0,0.69165772]
[1752469584905,0.4,121240.0,121230.0,0.68340935]
[1752469585287,0.4,121240.0,121230.0,0.55028935]
[1752469585945,0.4,121240.0,121230.0,0.67512091]
[1752469586119,0.4,121240.0,121230.0,0.6668724]
[1752469586600,0.4,121240.0,121230.0,0.35231993]
[1752469586825,0.49059993,121240.0,121230.0,0.3338]
[1752469587034,0.81696547,121240.0,121230.0,0.3338]
[1752469587251,0.41696547,121240.0,121230.0,0.3338]
[1752469587460,0.44806547,121240.0,121230.0,0.3338]
[1752469588139,0.49059993,121240.0,121230.0,0.37107495]
[1752469589691,0.63059993,121240.0,121230.0,0.37107495]
[1752469593233,0.62542993,121240.0,121230.0,0.43654495]
[1752469593502,0.62844993,121240.0,121230.0,0.43654495]
[1752469593694,0.62844993,121240.0,121230.0,0.40444495]
[1752469593841,0.63041993,121240.0,121230.0,0.37107495]
[1752469594043,0.95678547,121240.0,121230.0,0.37107495]
[1752469594238,0.55678547,121240.0,121230.0,0.37107495]
[1752469594688,0.23041993,121240.0,121230.0,0.37107495]
[1752469594893,0.55678547,121240.0,121230.0,0.37107495]
[1752469595413,0.23041993,121240.0,121230.0,0.23799495]
[1752469595599,0.55678547,121240.0,121230.0,0.37103495]
[1752469595759,0.58958547,121240.0,121230.0,0.37103495]
[1752469596169,0.61958547,121240.0,121230.0,0.37103495]
[1752469596371,1.49019739,121240.0,121230.0,0.20072]
[1752469596602,1.47370194,121240.0,121230.0,0.20072]
[1752469596922,1.49843794,121240.0,121230.0,0.33372]
[1752469597412,1.49843794,121240.0,121230.0,0.33272]
[1752469597610,1.49943794,121240.0,121230.0,0.33272]
[1752469597932,1.49118991,121240.0,121230.0,0.33272]
[1752469598063,1.49018991,121240.0,121230.0,0.33272]
[1752469598896,1.49018991,121240.0,121230.0,0.33072]
[1752469599102,1.49618991,121240.0,121230.0,0.19772]
[1752469599320,1.49618991,121240.0,121230.0,0.33072]
[1752469600608,0.04564085,121220.0,121210.0,0.00014874]
[1752469600994,0.45940632,121220.0,121210.0,0.13314874]
[1752469601172,0.46242632,121220.0,121210.0,0.13314874]
[1752469601744,0.10496078,121220.0,121210.0,0.00014874]
[1752469601931,0.10496078,121220.0,121210.0,0.13310874]
[1752469602131,0.10496078,121220.0,121210.0,0.06660631]
[1752469602355,0.10496078,121220.0,121210.0,0.19956631]
[1752469602554,0.10299078,121220.0,121210.0,0.22966631]
[1752469603138,0.08542993,121220.0,121210.0,0.27820892]
[1752469603342,0.08542993,121220.0,121210.0,0.27820926]
[1752469603556,0.08542993,121220.0,121210.0,0.40291919]
[1752469603728,0.08542993,121220.0,121210.0,0.40291926]
[1752469604337,0.08542993,121220.0,121210.0,0.22966631]
[1752469604852,0.41678547,121220.0,121210.0,0.00014874]
[1752469605085,0.41678547,121220.0,121210.0,0.13310874]
[1752469605290,0.46322632,121220.0,121210.0,0.00014874]
[1752469605475,0.49462632,121220.0,121210.0,0.00014874]
[1752469605678,0.46322632,121220.0,121210.0,0.13310874]
[1752469605882,0.46322632,121220.0,121210.0,0.14641961]
[1752469606529,0.46322632,121220.0,121210.0,0.01345961]
[1752469606808,0.46322632,121220.0,121210.0,0.13310874]
[1752469607016,0.51082435,121220.0,121210.0,0.13310874]
[1752469607158,0.69231233,121220.0,121210.0,0.00014874]
[1752469607371,1.0158143,121220.0,121210.0,0.13310874]
[1752469607569,1.0158143,121220.0,121210.0,0.00014874]
[1752469608073,1.0158143,121220.0,121210.0,0.13306874]
[1752469608294,1.0158143,121220.0,121210.0,0.00014874]
[1752469608663,1.0188143,121220.0,121210.0,0.13306874]
[1752469609062,1.0188143,121220.0,121210.0,0.00014874]
[1752469609293,1.01881383,121220.0,121210.0,0.13306874]
[1752469609430,1.02706322,121220.0,121210.0,0.13306874]
[1752469609627,1.01881417,121220.0,121210.0,0.00014874]
[1752469609834,1.01881417,121220.0,121210.0,0.13306874]
[1752469610489,1.34517971,121220.0,121210.0,0.00014874]
[1752469610663,1.63576171,121220.0,121210.0,0.00014874]
[1752469611248,1.66354884,121220.0,121210.0,0.00014874]
[1752469611450,1.66054884,121220.0,121210.0,0.00014874]
[1752469611653,1.75754884,121220.0,121210.0,1e-08]
[1752469611851,1.76154884,121220.0,121210.0,1e-08]
[1752469612060,1.76985063,121220.0,121210.0,1e-08]
[1752469612470,1.17764509,121220.0,121210.0,1e-08]
[1752469612671,1.17364509,121220.0,121210.0,1e-08]
[1752469612873,1.30656509,121220.0,121210.0,1e-08]
[1752469613083,1.31156509,121220.0,121210.0,1e-08]
[1752469613287,1.12464509,121220.0,121210.0,1e-08]
[1752469613582,1.07864509,121220.0,121210.0,1e-08]
[1752469613784,1.32864509,121220.0,121210.0,1e-08]
[1752469613991,1.37864509,121220.0,121210.0,1e-08]
[1752469614410,0.98864509,121220.0,121210.0,1e-08]
[1752469614748,1.30385796,121220.0,121210.0,1e-08]
[1752469614980,0.79886828,121220.0,121210.0,1e-08]
[1752469615185,0.68403445,121220.0,121210.0,1e-08]
[1752469615356,0.69228364,121220.0,121210.0,0.13292001]
[1752469615578,0.44032632,121220.0,121210.0,1e-08]
[1752469615777,0.09442993,121220.0,121210.0,0.06737001]
[1752469615996,0.42079547,121220.0,121210.0,0.06737001]
[1752469616209,0.42079547,121220.0,121210.0,0.20029001]
[1752469616575,0.43533632,121220.0,121210.0,0.20029001]
[1752469616777,0.43435632,121220.0,121210.0,0.20029001]
[1752469617070,0.43735632,121220.0,121210.0,0.20029001]
[1752469617221,0.43735632,121220.0,121210.0,0.22027901]
[1752469617419,0.43435632,121220.0,121210.0,0.22027901]
[1752469617644,0.43435632,121220.0,121210.0,0.08739901]
[1752469617812,0.43635632,121220.0,121210.0,0.20025001]
[1752469618177,0.10999078,121220.0,121210.0,0.20025001]
[1752469618377,0.10697078,121220.0,121210.0,0.06737001]
[1752469618593,0.10697078,121220.0,121210.0,0.20025001]
[1752469618984,0.09242993,121220.0,121210.0,0.37460296]
[1752469619190,0.08742993,121220.0,121210.0,0.20135001]
[1752469619399,0.08742993,121220.0,121210.0,0.20960008]
[1752469619712,0.08742993,121220.0,121210.0,0.20960015]
[1752469619910,0.08542993,121220.0,121210.0,0.20135001]
[1752469620122,0.44268262,121220.0,121210.0,0.03457001]
[1752469620443,0.41793547,121220.0,121210.0,0.16745001]
[1752469620649,0.42193547,121220.0,121210.0,0.03457001]
[1752469620864,0.42193547,121220.0,121210.0,0.16745001]
[1752469621086,0.41793547,121220.0,121210.0,0.16745001]
[1752469621301,0.41379547,121220.0,121210.0,0.18717501]
[1752469621510,0.41379547,121220.0,121210.0,0.21717501]
[1752469622183,0.41379547,121220.0,121210.0,0.08433501]
[1752469622372,0.41906547,121220.0,121210.0,0.16741001]
[1752469622818,0.41379547,121220.0,121210.0,0.06497001]
[1752469623022,0.08742993,121220.0,121210.0,0.07322008]
[1752469623244,0.08742993,121220.0,121210.0,0.20716015]
[1752469623438,0.08742993,121220.0,121210.0,0.19781001]
[1752469623671,0.08742993,121220.0,121210.0,0.23750288]
[1752469624277,0.08742993,121220.0,121210.0,0.10466288]
[1752469624592,0.41379547,121220.0,121210.0,0.23750288]
[1752469624783,0.41379547,121220.0,121210.0,0.10466288]
[1752469625015,0.41694547,121220.0,121210.0,0.10466288]
[1752469625225,0.41694547,121220.0,121210.0,0.23750288]
[1752469625444,0.41694547,121220.0,121210.0,0.19781001]
[1752469626041,0.41694547,121220.0,121210.0,0.03457001]
[1752469626254,0.41906547,121220.0,121210.0,0.16741001]
[1752469626601,0.41906547,121220.0,121210.0,0.03457001]
[1752469626802,0.09269993,121220.0,121210.0,0.16741001]
[1752469627002,0.41906547,121220.0,121210.0,0.05521609]
[1752469627222,0.45206547,121220.0,121210.0,1e-08]
[1752469627422,0.45206547,121220.0,121210.0,0.13280001]
[1752469627646,0.46031438,121220.0,121210.0,0.13280001]
[1752469627909,0.44185523,121220.0,121210.0,0.13280001]
[1752469628083,0.44185517,121220.0,121210.0,0.13280001]
[1752469628499,0.43360632,121220.0,121210.0,1e-08]
[1752469628813,0.44185523,121220.0,121210.0,0.13280001]
[1752469629220,0.43360632,121220.0,121210.0,0.13280001]
[1752469629425,0.43360632,121220.0,121210.0,0.01328001]
[1752469629639,0.43360632,121220.0,121210.0,0.13280001]
[1752469630445,0.10724078,121220.0,121210.0,0.13280001]
[1752469630645,0.43360632,121220.0,121210.0,0.13280001]
[1752469634598,0.43360632,121220.0,121210.0,1e-08]
[1752469634800,0.08742993,121220.0,121210.0,0.06407001]
[1752469635007,0.08742993,121220.0,121210.0,0.23139879]
[1752469635210,0.08742993,121220.0,121210.0,0.40465174]
[1752469635349,0.08742993,121220.0,121210.0,0.41290174]
[1752469635550,0.08742993,121220.0,121210.0,0.42115168]
[1752469635752,0.08742993,121220.0,121210.0,0.41290174]
[1752469636256,0.08742993,121220.0,121210.0,0.40465174]
[1752469636454,0.08742993,121220.0,121210.0,0.42115168]
[1752469636908,0.08742993,121220.0,121210.0,0.41290174]
[1752469637651,0.08742993,121220.0,121210.0,0.42115168]
[1752469637965,0.08742993,121220.0,121210.0,0.41290174]
[1752469638169,0.08742993,121220.0,121210.0,0.27189174]
[1752469638409,0.08742993,121220.0,121210.0,0.23135879]
[1752469638614,0.08742993,121220.0,121210.0,0.24785886]
[1752469638835,0.08742993,121220.0,121210.0,0.23135879]
[1752469639039,0.08742993,121220.0,121210.0,0.23960886]
[1752469639713,0.08742993,121220.0,121210.0,0.41286174]
[1752469639910,0.08742993,121220.0,121210.0,0.42111168]
[1752469640777,0.08742993,121220.0,121210.0,0.28839168]
[1752469640979,0.08742993,121220.0,121210.0,0.29774107]
[1752469641180,0.08742993,121220.0,121210.0,0.43046121]
[1752469641370,0.08742993,121220.0,121210.0,0.42936053]
[1752469641955,0.08742993,121220.0,121210.0,0.40461134]
[1752469642179,0.08742993,121220.0,121210.0,0.40457167]
[1752469642595,0.08742993,121220.0,121210.0,0.26364167]
[1752469642806,0.08742993,121220.0,121210.0,0.09863879]
[1752469643090,0.08742993,121220.0,121210.0,0.24781886]
[1752469643700,0.08742993,121220.0,121210.0,0.42107161]
[1752469643999,0.08742993,121220.0,121210.0,0.41282174]
[1752469644226,0.08742993,121220.0,121210.0,0.23131879]
[1752469644419,0.08742993,121220.0,121210.0,0.23956886]
[1752469644573,0.08742993,121220.0,121210.0,0.23131879]
[1752469644771,0.08742993,121220.0,121210.0,0.22306865]
[1752469644960,0.08742993,121220.0,121210.0,0.23131879]
[1752469645357,0.08742993,121220.0,121210.0,0.22306865]
[1752469645585,0.08742993,121220.0,121210.0,0.23131879]
[1752469645811,0.08742993,121220.0,121210.0,0.23956886]
[1752469646192,0.09057993,121220.0,121210.0,0.22306865]
[1752469646364,0.09057993,121220.0,121210.0,0.23131879]
[1752469646573,0.09057993,121220.0,121210.0,0.23956886]
[1752469647271,0.09057993,121220.0,121210.0,0.24781886]
[1752469647479,0.09057993,121220.0,121210.0,0.23956886]
[1752469647690,0.08742993,121220.0,121210.0,0.41282174]
[1752469647909,0.08742993,121220.0,121210.0,0.09038865]
[1752469648118,0.08742993,121220.0,121210.0,0.23131879]
[1752469648324,0.08742993,121220.0,121210.0,0.23956886]
[1752469648821,0.08742993,121220.0,121210.0,0.09863879]
[1752469649027,0.08742993,121220.0,121210.0,0.22302865]
[1752469650053,0.22742993,121220.0,121210.0,0.23046363]
[1752469650489,0.22742993,121220.0,121210.0,0.22221349]
[1752469651160,0.23067993,121220.0,121210.0,0.16519485]
[1752469651904,0.55704547,121220.0,121210.0,0.16519485]
[1752469652554,0.55906547,121220.0,121210.0,0.13355485]
[1752469652750,0.55704547,121220.0,121210.0,0.13355485]
[1752469652962,0.55704547,121220.0,121210.0,0.19665485]
[1752469653201,0.55704547,121220.0,121210.0,0.23694703]
[1752469653406,0.23067993,121220.0,121210.0,0.23694703]
[1752469653854,0.23067993,121220.0,121210.0,0.10434703]
[1752469654039,0.23067993,121220.0,121210.0,0.23694703]
[1752469655555,0.23067993,121220.0,121210.0,0.10434703]
[1752469656045,0.55906547,121220.0,121200.0,0.0641]
[1752469656173,0.81179547,121210.0,121200.0,0.03194879]
[1752469656379,0.43356473,121210.0,121200.0,0.00014879]
[1752469656654,0.69540847,121210.0,121200.0,0.00014879]
[1752469656845,0.69540847,121210.0,121200.0,0.13270879]
[1752469657235,0.69540847,121210.0,121200.0,0.13370879]
[1752469657738,0.69540847,121210.0,121200.0,0.13270879]
[1752469657920,0.69540847,121210.0,121200.0,0.13370879]
[1752469658123,0.52215552,121210.0,121200.0,0.13370879]
[1752469658324,0.52215552,121210.0,121200.0,0.00114879]
[1752469658539,0.6954084,121210.0,121200.0,0.13370879]
[1752469658738,0.68715928,121210.0,121200.0,0.00114879]
[1752469659011,0.67890914,121210.0,121200.0,0.00114879]
[1752469659228,0.68715928,121210.0,121200.0,0.13370879]
[1752469659696,1.01890934,121210.0,121200.0,0.13370879]
[1752469659855,1.01890934,121210.0,121200.0,0.00114879]
[1752469660058,1.01890934,121210.0,121200.0,0.13370879]
[1752469660673,1.01890934,121210.0,121200.0,0.13270879]
[1752469661095,1.01990934,121210.0,121200.0,0.16575967]
[1752469661482,1.01990934,121210.0,121200.0,0.13270879]
[1752469661677,1.02090934,121210.0,121200.0,0.00014879]
[1752469662139,1.02090934,121210.0,121200.0,0.13270879]
[1752469664085,1.02090934,121210.0,121200.0,0.13266879]
[1752469665560,1.02090934,121210.0,121200.0,0.00014879]
[1752469665769,1.02090934,121210.0,121200.0,0.13266879]
[1752469667183,1.02090934,121210.0,121200.0,0.00014879]
[1752469667384,1.02090934,121210.0,121200.0,0.13266879]
[1752469670014,0.44197078,121210.0,121200.0,0.16571567]
[1752469670233,0.44197078,121210.0,121200.0,0.22863567]
[1752469670234,0.08742993,121210.0,121200.0,0.22863567]
[1752469670438,0.08742993,121210.0,121200.0,0.61228963]
[1752469670658,0.08742993,121210.0,121200.0,0.41840416]
[1752469670863,0.08742993,121210.0,121200.0,0.42665457]
[1752469671086,0.08742993,121210.0,121200.0,0.43519491]
[1752469671283,0.08742993,121210.0,121200.0,0.76156045]
[1752469671502,0.002,121210.0,121200.0,0.76156045]
[1752469671690,0.402,121210.0,121200.0,0.76156045]
[1752469672108,0.4,121210.0,121200.0,0.76156045]
[1752469672315,0.4,121210.0,121200.0,0.76256045]
[1752469672630,0.14,121220.0,121210.0,0.23605295]
[1752469672838,0.22542993,121220.0,121210.0,0.33844262]
[1752469673038,0.22542993,121220.0,121210.0,0.33844269]
[1752469673193,0.22542993,121220.0,121210.0,0.32194288]
[1752469673355,0.22542993,121220.0,121210.0,0.14868993]
[1752469673764,0.22542993,121220.0,121210.0,0.06326]
[1752469674030,0.22542993,121220.0,121210.0,0.19574]
[1752469676178,0.22542993,121220.0,121210.0,0.20399014]
[1752469676512,0.22542993,121220.0,121210.0,0.21220021]
[1752469676718,0.22542993,121220.0,121210.0,0.08801021]
[1752469676913,0.22542993,121220.0,121210.0,0.29153533]
[1752469677114,0.22542993,121220.0,121210.0,0.43222506]
[1752469677342,0.22542993,121220.0,121210.0,0.43222472]
[1752469677543,0.22542993,121220.0,121210.0,0.42397499]
[1752469677707,0.22542993,121220.0,121210.0,0.43222486]
[1752469678123,0.22542993,121220.0,121210.0,0.29978479]
[1752469678332,0.22542993,121220.0,121210.0,0.40743525]
[1752469678536,0.22542993,121220.0,121210.0,0.42393499]
[1752469678737,0.22542993,121220.0,121210.0,0.42393506]
[1752469679245,0.22542993,121220.0,121210.0,0.43218486]
[1752469679660,0.22542993,121220.0,121210.0,0.43218452]
[1752469679911,0.22542993,121220.0,121210.0,0.42393479]
[1752469680234,0.22542993,121220.0,121210.0,0.43218452]
[1752469680406,0.22542993,121220.0,121210.0,0.42393479]
[1752469680817,0.22542993,121220.0,121210.0,0.28328499]
[1752469681014,0.22542993,121220.0,121210.0,0.40743512]
[1752469681233,0.22542993,121220.0,121210.0,0.39918518]
[1752469681433,0.22542993,121220.0,121210.0,0.26678525]
[1752469681662,0.22542993,121220.0,121210.0,0.23414237]
[1752469682402,0.22542993,121220.0,121210.0,0.24239237]
[1752469682634,0.22836993,121220.0,121210.0,0.24239251]
[1752469682804,0.22836993,121220.0,121210.0,0.11003251]
[1752469683009,0.22836993,121220.0,121210.0,0.41564533]
[1752469683376,0.22836993,121220.0,121210.0,0.0935323]
[1752469683592,0.6360835,121220.0,121200.0,0.32889567]
[1752469683794,0.41473547,121210.0,121200.0,0.49391217]
[1752469684005,0.41473547,121210.0,121200.0,0.46125567]
[1752469684204,0.08836993,121210.0,121200.0,0.50260642]
[1752469684414,0.09051993,121210.0,121200.0,0.50260642]
[1752469684608,0.09051993,121210.0,121200.0,0.66762292]
[1752469684741,0.09051993,121210.0,121200.0,0.66808292]
[1752469684948,0.09051993,121210.0,121200.0,0.7064336]
[1752469685154,0.09051993,121210.0,121200.0,0.7084336]
[1752469685901,0.09051993,121210.0,121200.0,0.70018292]
[1752469686181,0.09051993,121210.0,121200.0,0.67008292]
[1752469686424,0.09051993,121210.0,121200.0,0.6783336]
[1752469686668,0.09051993,121210.0,121200.0,0.68758415]
[1752469686911,0.09051993,121210.0,121200.0,0.68754422]
[1752469687155,0.08542993,121210.0,121200.0,0.72709477]
[1752469687360,0.08542993,121210.0,121200.0,0.73634518]
[1752469687569,0.08542993,121210.0,121200.0,0.72809443]
[1752469687991,0.08542993,121210.0,121200.0,0.73634491]
[1752469688201,0.08542993,121210.0,121200.0,0.44064491]
[1752469688401,0.08542993,121210.0,121200.0,0.44064457]
[1752469688604,0.14,121220.0,121210.0,0.24590295]
[1752469688817,0.22542993,121220.0,121210.0,0.28919205]
[1752469689010,0.22836993,121220.0,121210.0,0.30569186]
[1752469689461,0.22542993,121220.0,121210.0,0.31394166]
[1752469689645,0.22542993,121220.0,121210.0,0.29744199]
[1752469690519,0.22542993,121220.0,121210.0,0.30569186]
[1752469690723,0.22542993,121220.0,121210.0,0.29744199]
[1752469690921,0.22542993,121220.0,121210.0,0.30569186]
[1752469691119,0.22542993,121220.0,121210.0,0.08453924]
[1752469691336,0.22836993,121220.0,121210.0,0.21681924]
[1752469691561,0.22836993,121220.0,121210.0,0.22506931]
[1752469692341,0.22836993,121220.0,121210.0,0.21681924]
[1752469692551,0.22836993,121220.0,121210.0,0.42282924]
[1752469692878,0.22836993,121220.0,121210.0,0.41457924]
[1752469693081,0.22836993,121220.0,121210.0,0.4063291]
[1752469693289,0.22836993,121220.0,121210.0,0.41457924]
[1752469693488,0.22836993,121220.0,121210.0,0.43107931]
[1752469693662,0.22836993,121220.0,121210.0,0.29054931]
[1752469694088,0.22836993,121220.0,121210.0,0.41453924]
[1752469694243,0.22836993,121220.0,121210.0,0.42278931]
[1752469694428,0.22836993,121220.0,121210.0,0.41453924]
[1752469694636,0.22836993,121220.0,121210.0,0.42278931]
[1752469695243,0.22836993,121220.0,121210.0,0.59604213]
[1752469695447,0.22836993,121220.0,121210.0,0.45555219]
[1752469695646,0.22836993,121220.0,121210.0,0.41453924]
[1752469695867,0.22836993,121220.0,121210.0,0.45555212]
[1752469696086,0.22836993,121220.0,121210.0,0.58779212]
[1752469696287,0.22836993,121220.0,121210.0,0.45555212]
[1752469696495,0.22836993,121220.0,121210.0,0.58779219]
[1752469696886,0.22836993,121220.0,121210.0,0.41453924]
[1752469697082,0.22836993,121220.0,121210.0,0.42278924]
[1752469697198,0.22836993,121220.0,121210.0,0.29054924]
[1752469697395,0.22836993,121220.0,121210.0,0.42274924]
[1752469697600,0.22836993,121220.0,121210.0,0.28229924]
[1752469697798,0.22836993,121220.0,121210.0,0.4062491]
[1752469698232,0.23051993,121220.0,121210.0,0.2740491]
[1752469698433,0.23051993,121220.0,121210.0,0.3732491]
[1752469699487,0.22969495,121220.0,121210.0,0.3732491]
[1752469699686,0.56430934,121220.0,121210.0,0.2405891]
[1752469700028,0.59690934,121220.0,121210.0,0.3727891]
[1752469702070,0.60515832,121220.0,121210.0,0.2405891]
[1752469702257,0.60515832,121220.0,121210.0,0.1749891]
[1752469702484,0.00824966,121210.0,121200.0,0.23095567]
[1752469702665,0.46284493,121210.0,121200.0,0.36311567]
[1752469702796,0.44928547,121210.0,121200.0,0.36311567]
[1752469703023,0.09051993,121210.0,121200.0,0.36311567]
[1752469703237,0.09051993,121210.0,121200.0,0.37136649]
[1752469703439,0.09051993,121210.0,121200.0,0.23095567]
[1752469703679,0.09051993,121210.0,121200.0,0.36311567]
[1752469704059,0.17011946,121210.0,121200.0,0.23095567]
[1752469704354,0.67798789,121210.0,121200.0,0.33006879]
[1752469704535,0.66973823,121210.0,121200.0,0.33006879]
[1752469704693,0.66973823,121210.0,121200.0,0.33002879]
[1752469704899,0.66973823,121210.0,121200.0,0.33102879]
[1752469705647,0.66973823,121210.0,121200.0,0.33302879]
[1752469706553,0.66973823,121210.0,121200.0,0.34363028]
[1752469706792,0.66973823,121210.0,121200.0,0.33302879]
[1752469707001,0.66148856,121210.0,121200.0,0.20090879]
[1752469707405,0.49648541,121210.0,121200.0,0.20090879]
[1752469707627,0.51298508,121210.0,121200.0,0.33302879]
[1752469707865,0.496485,121210.0,121200.0,0.33302879]
[1752469708108,0.14736933,121210.0,121200.0,0.36715682]
[1752469708339,0.13911939,121210.0,121200.0,0.36615682]
[1752469708552,0.14736933,121210.0,121200.0,0.36615682]
[1752469708768,0.1556194,121210.0,121200.0,0.36615682]
[1752469708979,0.13911939,121210.0,121200.0,0.36415682]
[1752469709454,0.15561933,121210.0,121200.0,0.36415682]
[1752469710386,0.48198487,121210.0,121200.0,0.19790879]
[1752469710578,0.48198487,121210.0,121200.0,0.32998879]
[1752469711030,0.63873809,121210.0,121200.0,0.32998879]
[1752469711229,0.66368829,121210.0,121200.0,0.32998879]
[1752469711865,0.65543842,121210.0,121200.0,0.32998879]
[1752469712015,0.64718835,121210.0,121200.0,0.32998879]
[1752469712217,0.64718835,121210.0,121200.0,0.36298767]
[1752469713394,0.64718835,121210.0,121200.0,0.19790879]
[1752469713594,0.64718835,121210.0,121200.0,0.32994879]
[1752469714615,0.64818835,121210.0,121200.0,0.32994879]
[1752469715045,0.64918835,121210.0,121200.0,0.32994879]
[1752469715243,0.64918835,121210.0,121200.0,0.19790879]
[1752469715489,0.64918835,121210.0,121200.0,0.32994879]
[1752469717091,0.6637292,121210.0,121200.0,0.19790879]
[1752469717281,1.0037292,121210.0,121200.0,0.19790879]